bitfinex-derivatives/quotes_BTCF0:USTF0_20241008
["timestamp","ask_amount","ask_price","bid_price","bid_amount"]
[1728396260603,0.002,63184.0,63181.0,0.3608]
[1728396260604,0.079156,63188.0,63181.0,0.3638]
[1728396260803,0.079156,63188.0,63182.0,0.079163]
[1728396261517,0.27,63184.0,63183.0,0.002]
[1728396261823,0.439957,63188.0,63183.0,0.002]
[1728396262024,0.079158,63187.0,63183.0,0.002]
[1728396263015,0.079158,63187.0,63184.0,0.3608]
[1728396263319,0.079148,63195.0,63184.0,0.3608]
[1728396263320,0.079159,63186.0,63184.0,0.3608]
[1728396263515,0.63317466,63196.0,63184.0,0.3608]
[1728396263714,0.079153,63191.0,63184.0,0.3608]
[1728396264227,0.079153,63191.0,63186.0,0.079158]
[1728396264519,0.079155,63189.0,63184.0,0.3608]
[1728396264714,0.079155,63189.0,63184.0,0.3618]
[1728396265420,0.079158,63187.0,63184.0,0.440961]
[1728396265621,0.079159,63186.0,63184.0,0.3618]
[1728396265817,0.079155,63189.0,63184.0,0.001]
[1728396265818,0.34916,63185.0,63184.0,0.001]
[1728396266018,0.07916,63185.0,63184.0,0.002]
[1728396266419,0.07916,63185.0,63184.0,0.001]
[1728396267223,0.079171,63176.0,63167.0,0.079182]
[1728396267520,0.27,63177.0,63166.0,0.3608]
[1728396267712,0.079176,63173.0,63170.0,0.079178]
[1728396267915,0.27,63172.0,63166.0,0.3608]
[1728396268108,0.07918,63169.0,63166.0,0.3608]
[1728396268314,0.079175,63173.0,63166.0,0.3608]
[1728396268512,0.3608,63176.0,63175.0,0.004]
[1728396268814,0.079163,63183.0,63180.0,0.079166]
[1728396269019,0.6308,63192.0,63181.0,0.079165]
[1728396269215,0.079163,63183.0,63177.0,0.079169]
[1728396269622,0.079163,63183.0,63178.0,0.079169]
[1728396270323,0.079153,63191.0,63171.0,0.079177]
[1728396270324,0.079171,63176.0,63171.0,0.079177]
[1728396270627,0.349153,63191.0,63175.0,0.3608]
[1728396270922,0.27,63176.0,63169.0,0.3608]
[1728396271129,0.079176,63173.0,63169.0,0.439979]
[1728396271311,0.079176,63172.0,63169.0,0.439979]
[1728396271620,0.002,63183.0,63169.0,0.3608]
[1728396271814,0.002,63183.0,63181.0,0.3608]
[1728396272018,0.002,63183.0,63182.0,0.439964]
[1728396272222,0.0054,63195.0,63182.0,0.3608]
[1728396272425,0.0054,63195.0,63190.0,0.079154]
[1728396273110,0.0054,63195.0,63189.0,0.72256]
[1728396273111,0.0054,63195.0,63192.0,0.27]
[1728396273622,0.0054,63195.0,63194.0,0.079149]
[1728396274325,0.079167,63179.0,63178.0,0.3608]
[1728396274521,0.079167,63179.0,63178.0,0.36072]
[1728396274914,0.001,63183.0,63179.0,0.079166]
[1728396274915,0.080163,63183.0,63179.0,0.079166]
[1728396275115,0.079164,63182.0,63179.0,0.079166]
[1728396275320,0.00092,63189.0,63178.0,0.36072]
[1728396275520,0.079151,63193.0,63188.0,0.3608]
[1728396275717,0.018,63195.0,63191.0,0.3608]
[1728396275913,0.004,63195.0,63191.0,0.3608]
[1728396276117,0.004,63195.0,63191.0,0.3604]
[1728396276319,0.07915,63194.0,63191.0,0.3604]
[1728396276727,0.004,63195.0,63191.0,0.3604]
[1728396276918,0.079151,63192.0,63191.0,0.3604]
[1728396277115,0.079153,63191.0,63188.0,0.3608]
[1728396277319,0.079153,63191.0,63189.0,0.079155]
[1728396277519,0.001,63189.0,63188.0,0.3608]
[1728396277722,0.001,63189.0,63188.0,0.439956]
[1728396278128,0.001,63189.0,63188.0,0.3069]
[1728396278129,0.079155,63189.0,63188.0,0.3069]
[1728396278428,0.079155,63189.0,63178.0,0.006]
[1728396278429,0.07916,63186.0,63183.0,0.3608]
[1728396278622,0.079161,63184.0,63183.0,0.3608]
[1728396278927,0.03057286,63184.0,63178.0,0.085168]
[1728396279124,0.03057286,63183.0,63180.0,0.079166]
[1728396279328,0.03876334,63182.0,63181.0,0.439965]
[1728396279518,0.003,63189.0,63181.0,0.3608]
[1728396279718,0.1179226,63188.0,63181.0,0.3608]
[1728396279918,0.11792284,63187.0,63181.0,0.3608]
[1728396280120,0.005,63189.0,63181.0,0.3608]
[1728396280121,0.11792237,63186.0,63181.0,0.3608]
[1728396280428,0.11792135,63185.0,63184.0,0.349161]
[1728396280732,0.11792135,63185.0,63184.0,0.079161]
[1728396280931,0.06933877,63185.0,63184.0,0.079161]
[1728396281127,0.06933877,63185.0,63184.0,0.349161]
[1728396281733,0.25833735,63196.0,63184.0,0.349161]
[1728396281734,0.15799123,63193.0,63184.0,1.423961]
[1728396282038,0.0054,63196.0,63195.0,0.079147]
[1728396282229,0.0054,63196.0,63192.0,0.6308]
[1728396282230,0.16339123,63197.0,63196.0,0.079146]
[1728396282527,0.21196314,63197.0,63196.0,0.079146]
[1728396282725,0.05397209,63197.0,63196.0,0.079146]
[1728396283222,0.05397209,63197.0,63196.0,0.439946]
[1728396283624,0.21196332,63197.0,63196.0,0.439946]
[1728396283824,0.0054,63197.0,63196.0,0.914666]
[1728396284336,0.0094,63197.0,63196.0,0.950966]
[1728396284637,0.0214,63197.0,63196.0,1.551966]
[1728396284819,0.079133,63207.0,63196.0,1.821966]
[1728396285129,0.0338,63213.0,63202.0,0.27]
[1728396285336,0.27,63208.0,63196.0,0.3628]
[1728396285535,0.079143,63199.0,63197.0,0.079145]
[1728396285832,0.079133,63207.0,63196.0,0.3628]
[1728396286033,0.079133,63207.0,63198.0,0.079144]
[1728396286330,0.079133,63207.0,63202.0,0.3608]
[1728396286531,0.27,63208.0,63202.0,0.3608]
[1728396286830,0.079128,63211.0,63202.0,0.3608]
[1728396286831,0.079137,63203.0,63202.0,0.3608]
[1728396287136,0.079137,63203.0,63202.0,0.3618]
[1728396287322,0.349137,63203.0,63187.0,0.3608]
[1728396287523,0.079156,63188.0,63187.0,0.3608]
[1728396287723,0.079162,63183.0,63182.0,0.00237399]
[1728396288628,1.153962,63183.0,63173.0,0.3608]
[1728396288825,1.153962,63183.0,63164.0,0.0343]
[1728396288826,0.079189,63162.0,63161.0,0.3608]
[1728396289234,0.079183,63167.0,63161.0,0.83576]
[1728396289427,0.079182,63167.0,63166.0,0.27]
[1728396289941,0.079189,63162.0,63161.0,0.65865213]
[1728396290333,0.079189,63162.0,63161.0,0.02785213]
[1728396290636,0.079189,63162.0,63153.0,0.3608]
[1728396290637,0.079199,63154.0,63153.0,0.3608]
[1728396290930,0.079199,63154.0,63148.0,0.00237491]
[1728396290931,0.079205,63149.0,63148.0,0.00237491]
[1728396291728,0.0348,63166.0,63149.0,0.079205]
[1728396291729,0.079185,63166.0,63149.0,0.079205]
[1728396291935,0.001,63162.0,63161.0,0.434]
[1728396292130,0.080189,63162.0,63161.0,0.434]
[1728396293237,0.080189,63162.0,63161.0,0.014]
[1728396293633,0.07919,63161.0,63158.0,0.3608]
[1728396294030,0.079192,63160.0,63158.0,0.3608]
[1728396294345,0.079192,63159.0,63158.0,0.3608]
[1728396294836,0.079192,63159.0,63158.0,0.38879474]
[1728396295634,0.080192,63159.0,63158.0,0.38879474]
[1728396296135,0.080192,63159.0,63158.0,0.3608]
[1728396296535,0.082192,63159.0,63158.0,0.3608]
[1728396298837,0.079205,63149.0,63148.0,0.3608]
[1728396299033,0.079209,63146.0,63145.0,0.00237523]
[1728396299231,0.079209,63146.0,63145.0,1e-08]
[1728396299433,1.040009,63146.0,63145.0,1e-08]
[1728396299839,1.515089,63146.0,63145.0,1e-08]
[1728396300136,1.040009,63146.0,63145.0,1e-08]
[1728396300438,0.079231,63128.0,63127.0,0.80875347]
[1728396301141,0.079223,63135.0,63127.0,0.80875347]
[1728396301142,0.079222,63136.0,63127.0,1.88399347]
[1728396301337,0.3608,63143.0,63135.0,0.3608]
[1728396301539,0.07922,63137.0,63135.0,0.3608]
[1728396301730,0.079221,63136.0,63135.0,0.3608]
[1728396301936,0.42,63139.0,63127.0,0.38875347]
[1728396302230,0.079231,63128.0,63127.0,0.3608]
[1728396302441,0.079226,63133.0,63121.0,0.00237628]
[1728396302645,0.079238,63123.0,63121.0,0.00237628]
[1728396302832,0.079239,63122.0,63121.0,0.03038388]
[1728396303031,0.079239,63122.0,63121.0,0.00237628]
[1728396304334,0.080239,63122.0,63121.0,0.00937628]
[1728396305232,0.080239,63122.0,63121.0,0.017]
[1728396307542,0.04059726,63122.0,63121.0,0.017]
[1728396308838,0.079255,63109.0,63108.0,0.0023765]
[1728396309744,0.079255,63109.0,63108.0,0.03109692]
[1728396309943,0.079255,63109.0,63108.0,0.0023765]
[1728396310440,0.080255,63109.0,63108.0,0.0163765]
[1728396310646,0.350255,63109.0,63108.0,0.0163765]
[1728396311140,0.351255,63109.0,63108.0,0.0183765]
[1728396311545,0.351255,63109.0,63102.0,0.02891146]
[1728396311546,0.079263,63103.0,63102.0,0.02891146]
[1728396311737,0.079281,63089.0,63087.0,0.00237754]
[1728396311943,0.6308,63103.0,63087.0,0.00237754]
[1728396311944,0.27,63097.0,63087.0,0.00237754]
[1728396312140,0.079272,63096.0,63087.0,0.00237754]
[1728396312339,0.349282,63088.0,63087.0,0.00237754]
[1728396312541,0.079282,63088.0,63087.0,0.00237754]
[1728396312848,0.349282,63088.0,63087.0,0.00237754]
[1728396313347,0.079284,63086.0,63085.0,0.02780803]
[1728396313537,0.349282,63088.0,63077.0,0.3608]
[1728396313740,0.079282,63088.0,63077.0,0.3608]
[1728396313945,0.079275,63094.0,63086.0,0.27]
[1728396314149,0.079281,63089.0,63084.0,0.3608]
[1728396314345,0.080282,63088.0,63087.0,0.003]
[1728396315051,0.079286,63085.0,63078.0,0.6308]
[1728396315249,0.079284,63087.0,63084.0,0.001]
[1728396315551,0.079284,63087.0,63085.0,0.3608]
[1728396315847,0.001,63094.0,63085.0,0.3608]
[1728396315848,0.079284,63086.0,63085.0,0.3608]
[1728396316046,0.069284,63086.0,63085.0,0.3608]
[1728396316247,0.069284,63086.0,63085.0,0.83636]
[1728396316447,0.001,63088.0,63077.0,0.02879741]
[1728396316448,0.079293,63079.0,63077.0,0.02879741]
[1728396316650,0.079292,63080.0,63078.0,0.3608]
[1728396316841,0.002,63088.0,63078.0,0.6308]
[1728396317041,0.079283,63087.0,63078.0,0.3608]
[1728396317250,0.079283,63087.0,63071.0,0.6308]
[1728396317251,0.079302,63072.0,63071.0,0.3616]
[1728396317438,0.27,63073.0,63060.0,0.3608]
[1728396317644,0.07931,63066.0,63060.0,0.3608]
[1728396317842,0.001,63079.0,63055.0,0.3608]
[1728396317843,0.27,63064.0,63055.0,0.3608]
[1728396318046,0.079315,63062.0,63055.0,0.38925629]
[1728396318552,0.42,63067.0,63055.0,0.38925629]
[1728396318848,0.42,63056.0,63050.0,0.06113149]
[1728396319072,0.079323,63055.0,63049.0,0.06113149]
[1728396319266,0.079324,63054.0,63053.0,0.3608]
[1728396319559,0.079322,63056.0,63055.0,0.001]
[1728396319848,0.3618,63062.0,63055.0,0.001]
[1728396320051,0.079319,63058.0,63055.0,0.001]
[1728396320239,0.079322,63056.0,63055.0,0.001]
[1728396320439,0.079322,63056.0,63055.0,0.004]
[1728396321039,0.079322,63056.0,63055.0,0.001]
[1728396321247,0.079322,63056.0,63055.0,0.004]
[1728396322341,0.800922,63056.0,63055.0,0.003]
[1728396322545,0.079342,63040.0,63039.0,0.00237907]
[1728396323343,0.079342,63040.0,63039.0,7e-08]
[1728396323546,0.079362,63024.0,63023.0,0.3608]
[1728396323745,0.079363,63024.0,63017.0,0.3608]
[1728396323952,0.07937,63018.0,63017.0,0.3608]
[1728396324253,0.079379,63011.0,63010.0,0.3608]
[1728396324459,0.079379,63011.0,63001.0,0.3608]
[1728396324460,0.079382,63008.0,63001.0,0.3608]
[1728396324756,0.079382,63008.0,63001.0,0.38915454]
[1728396324951,0.03181893,63011.0,63007.0,0.35803339]
[1728396325252,0.079381,63009.0,63008.0,0.11326208]
[1728396325559,0.03181893,63011.0,63008.0,0.11326208]
[1728396325560,0.001,63011.0,63008.0,0.11326178]
[1728396325742,0.001,63011.0,63009.0,0.60906548]
[1728396325946,0.001,63011.0,63010.0,0.24826548]
[1728396326144,0.001,63011.0,63010.0,0.83177215]
[1728396326348,0.3608,63021.0,63010.0,0.84826548]
[1728396326550,0.079375,63014.0,63011.0,0.24826548]
[1728396326747,0.079375,63014.0,63012.0,0.24826548]
[1728396326952,0.3608,63032.0,63013.0,0.24826548]
[1728396327146,0.079357,63028.0,63027.0,0.07669854]
[1728396327468,0.079357,63028.0,63027.0,0.11326178]
[1728396329045,1.155357,63028.0,63024.0,0.00758925]
[1728396329242,0.079376,63013.0,63012.0,0.1350037]
[1728396329645,0.3608,63017.0,63007.0,0.00238058]
[1728396329849,0.3608,63017.0,63009.0,0.3608]
[1728396330054,0.07938,63010.0,63009.0,0.3608]
[1728396330452,0.079382,63008.0,63007.0,0.00238058]
[1728396332052,0.03177692,63008.0,63007.0,0.00338058]
[1728396332361,0.03177692,63008.0,63007.0,0.001]
[1728396333061,0.03177692,63008.0,62997.0,0.10737712]
[1728396333062,0.079395,62998.0,62997.0,0.10737712]
[1728396333254,0.079389,63004.0,62996.0,0.13205734]
[1728396333255,0.079396,62997.0,62996.0,0.10737712]
[1728396333459,0.079396,62997.0,62996.0,0.10760421]
[1728396333663,0.3608,63000.0,62996.0,0.10760421]
[1728396333861,0.3628,63008.0,62997.0,0.13119006]
[1728396334163,0.079384,63007.0,63002.0,0.10760421]
[1728396334359,0.079384,63007.0,63003.0,0.13119006]
[1728396334546,0.42,63005.0,63001.0,0.10760421]
[1728396334752,0.42,63005.0,63002.0,0.13119501]
[1728396334967,0.42,63005.0,63001.0,0.10760421]
[1728396334968,0.37243666,63005.0,63003.0,0.13119501]
[1728396335159,0.002,63008.0,63003.0,0.3608]
[1728396335452,0.42,63005.0,63004.0,0.25392264]
[1728396335652,0.500386,63005.0,63004.0,0.13119501]
[1728396335853,0.080386,63005.0,63004.0,0.13119501]
[1728396336047,0.001,63005.0,63004.0,1.56815501]
[1728396336254,0.001,63008.0,63004.0,1.56815501]
[1728396336255,0.002,63008.0,63004.0,1.56815501]
[1728396336453,0.002,63008.0,63007.0,0.10767551]
[1728396336454,0.081382,63008.0,63007.0,0.10767551]
[1728396336752,0.080382,63008.0,63007.0,0.13119501]
[1728396336950,0.500382,63008.0,63007.0,0.23886915]
[1728396337156,0.500382,63008.0,63007.0,0.23887293]
[1728396337348,0.42,63008.0,63007.0,0.13024986]
[1728396337552,0.42,63008.0,63006.0,0.13024986]
[1728396337755,0.499382,63008.0,63007.0,0.13024986]
[1728396338247,0.080382,63008.0,63007.0,0.13024986]
[1728396338458,0.080382,63008.0,63007.0,0.23800848]
[1728396338655,0.080382,63008.0,63007.0,0.13024986]
[1728396339065,0.081382,63008.0,63007.0,0.13024986]
[1728396339267,0.081382,63008.0,63007.0,0.13024488]
[1728396339767,0.081382,63008.0,63007.0,0.23804908]
[1728396339963,0.351382,63008.0,63007.0,0.13024488]
[1728396340159,0.351382,63008.0,63007.0,0.23804889]
[1728396340666,0.351382,63008.0,63007.0,0.13024488]
[1728396340667,0.712182,63008.0,63007.0,0.13024488]
[1728396341864,0.57530031,63008.0,63007.0,0.23816397]
[1728396342165,0.349382,63008.0,63007.0,0.13024488]
[1728396342479,0.079385,63006.0,63005.0,0.10791909]
[1728396342669,0.079391,63001.0,63000.0,0.10791909]
[1728396342859,0.079392,63000.0,62999.0,0.10791909]
[1728396343058,0.079394,62999.0,62998.0,0.15122042]
[1728396343259,0.079394,62999.0,62997.0,0.49886858]
[1728396343260,0.079394,62999.0,62997.0,0.49966858]
[1728396343552,0.079392,63001.0,62998.0,0.15122042]
[1728396343757,0.079392,63000.0,62999.0,0.29011262]
[1728396344067,0.079392,63000.0,62999.0,0.39617831]
[1728396344260,0.079392,63000.0,62999.0,0.25728611]
[1728396344767,0.079392,63000.0,62999.0,0.10606569]
[1728396344967,0.03383006,63004.0,62999.0,0.10606569]
[1728396345264,0.079391,63001.0,63000.0,0.21416258]
[1728396345474,0.27,63017.0,63000.0,0.10606569]
[1728396345769,0.079375,63014.0,63013.0,0.07725409]
[1728396346268,1.07608,63014.0,63012.0,0.07725409]
[1728396346571,1.07608,63014.0,63013.0,0.10536872]
[1728396346572,0.079375,63014.0,63013.0,0.10536872]
[1728396347067,1.155455,63014.0,63013.0,0.10536872]
[1728396347370,1.34608,63014.0,63004.0,0.3608]
[1728396347664,0.349386,63005.0,63004.0,0.3608]
[1728396347869,0.349386,63005.0,63000.0,0.004]
[1728396348070,0.079391,63001.0,63000.0,0.004]
[1728396348364,0.079391,63001.0,63000.0,0.002]
[1728396348866,0.079395,62998.0,62997.0,0.46896328]
[1728396349268,0.079395,62998.0,62997.0,0.46927248]
[1728396349463,0.079395,62998.0,62997.0,0.3608]
[1728396350174,0.080395,62998.0,62997.0,0.3628]
[1728396351157,0.075395,62998.0,62997.0,0.3628]
[1728396351360,0.075395,62998.0,62997.0,0.48633807]
[1728396351768,0.076395,62998.0,62997.0,0.3648]
[1728396351971,0.002,62998.0,62997.0,0.3648]
[1728396352162,0.081395,62998.0,62997.0,0.3648]
[1728396352358,0.081395,62998.0,62997.0,0.63512746]
[1728396352565,0.080395,62998.0,62997.0,0.63312746]
[1728396352872,0.081395,62998.0,62997.0,0.63512746]
[1728396353172,0.081395,62998.0,62997.0,0.9535801]
[1728396353359,0.081395,62998.0,62997.0,0.80017056]
[1728396353763,0.002,62998.0,62997.0,0.80017056]
[1728396354267,0.002,62998.0,62997.0,0.80051826]
[1728396354461,0.081395,62998.0,62997.0,0.68231193]
[1728396354663,0.27,62999.0,62997.0,0.68231342]
[1728396354859,0.349394,62999.0,62998.0,0.27033292]
[1728396355875,0.350394,62999.0,62998.0,0.27033292]
[1728396356070,0.079397,62996.0,62990.0,0.66618534]
[1728396356264,0.710204,62991.0,62990.0,0.396831]
[1728396356460,0.9916,62991.0,62981.0,0.17112461]
[1728396356762,0.9916,62991.0,62963.0,0.3616]
[1728396356763,0.079419,62979.0,62978.0,0.16428461]
[1728396356969,0.079423,62976.0,62975.0,5.6e-07]
[1728396357169,0.079432,62969.0,62964.0,0.06914579]
[1728396357366,0.079453,62952.0,62951.0,0.06914579]
[1728396357571,0.079454,62951.0,62950.0,0.00238274]
[1728396357765,0.079454,62951.0,62950.0,0.07081697]
[1728396358370,0.079447,62957.0,62950.0,1.14737697]
[1728396358566,0.079447,62957.0,62956.0,0.3608]
[1728396358762,0.079447,62957.0,62956.0,0.42923423]
[1728396359772,0.080447,62957.0,62956.0,0.42923423]
[1728396360163,0.27,62969.0,62956.0,0.42923423]
[1728396360469,0.079438,62964.0,62963.0,0.3608]
[1728396360670,0.349438,62964.0,62963.0,0.06843423]
[1728396362069,0.350438,62964.0,62963.0,0.06843423]
[1728396362371,0.711238,62964.0,62963.0,0.15996122]
[1728396362574,0.711238,62964.0,62944.0,0.3616]
[1728396362775,0.079459,62947.0,62944.0,0.3608]
[1728396362965,0.6308,62950.0,62946.0,0.13755005]
[1728396363173,0.079462,62945.0,62944.0,0.3608]
[1728396363366,0.079463,62944.0,62936.0,0.3608]
[1728396363673,0.27,62945.0,62936.0,0.3608]
[1728396363674,0.349469,62939.0,62936.0,0.3608]
[1728396364070,0.349469,62939.0,62938.0,0.12621738]
[1728396364475,0.079469,62939.0,62938.0,0.0033832]
[1728396364775,0.001,62944.0,62938.0,1.56465738]
[1728396364983,0.079451,62954.0,62943.0,0.3608]
[1728396365277,0.079454,62952.0,62951.0,0.3608]
[1728396365663,0.349454,62952.0,62951.0,0.15515314]
[1728396365873,0.349454,62952.0,62943.0,0.3608]
[1728396365874,0.079458,62948.0,62947.0,0.15515314]
[1728396366172,0.079458,62948.0,62947.0,0.10644794]
[1728396366577,0.079458,62948.0,62947.0,0.26158098]
[1728396366770,0.079458,62948.0,62947.0,0.10644794]
[1728396366965,0.917858,62948.0,62947.0,0.10844794]
[1728396367173,1.517858,62948.0,62947.0,0.10844794]
[1728396367372,1.518858,62948.0,62947.0,0.11044794]
[1728396367675,0.556059,62947.0,62943.0,0.10854417]
[1728396367879,0.079464,62943.0,62942.0,0.10854417]
[1728396368080,0.349464,62943.0,62942.0,0.10854417]
[1728396368281,0.079467,62941.0,62933.0,0.17613099]
[1728396368474,0.349476,62934.0,62933.0,0.0365]
[1728396369276,0.079478,62932.0,62930.0,0.13963099]
[1728396369477,0.079478,62932.0,62929.0,0.13963099]
[1728396369685,0.27,62930.0,62928.0,0.13963099]
[1728396369882,0.079483,62928.0,62923.0,0.18893304]
[1728396370072,0.349488,62924.0,62923.0,0.0338]
[1728396370381,0.349488,62924.0,62920.0,0.36477]
[1728396370382,0.079492,62921.0,62920.0,0.36477]
[1728396370769,0.079492,62921.0,62920.0,0.3608]
[1728396371476,0.080492,62921.0,62920.0,0.3608]
[1728396372580,0.001,62921.0,62920.0,0.7216]
[1728396372878,0.079492,62921.0,62920.0,0.3608]
[1728396374784,0.079487,62925.0,62920.0,0.3608]
[1728396374981,0.3608,62934.0,62921.0,0.0375]
[1728396375285,0.079481,62930.0,62927.0,0.3608]
[1728396375486,0.079483,62928.0,62927.0,0.3608]
[1728396376884,0.001,62934.0,62927.0,0.3608]
[1728396377085,0.079476,62934.0,62933.0,0.3608]
[1728396377273,0.001,62934.0,62933.0,0.3608]
[1728396377479,0.079474,62936.0,62933.0,0.3608]
[1728396377876,0.079465,62943.0,62933.0,0.3608]
[1728396378083,0.079467,62941.0,62940.0,0.3608]
[1728396379184,0.079463,62944.0,62940.0,0.3608]
[1728396379375,0.07946,62947.0,62940.0,0.3608]
[1728396379677,0.00238399,62949.0,62946.0,0.3608]
[1728396379878,0.079458,62948.0,62946.0,0.3608]
[1728396380281,0.079454,62952.0,62947.0,0.4766]
[1728396380487,0.079454,62952.0,62947.0,0.27]
[1728396380790,0.3608,62963.0,62948.0,0.47656]
[1728396380986,0.3608,62963.0,62954.0,0.3608]
[1728396380987,0.079445,62959.0,62954.0,0.3608]
[1728396381185,0.440239,62963.0,62954.0,0.3608]
[1728396381186,0.079447,62957.0,62954.0,0.3608]
[1728396381682,0.079443,62961.0,62954.0,0.3608]
[1728396381886,0.079443,62961.0,62960.0,0.3608]
[1728396382590,0.079438,62964.0,62960.0,0.3608]
[1728396382885,0.079427,62973.0,62963.0,0.27]
[1728396383102,0.079416,62982.0,62969.0,0.6308]
[1728396383279,0.08180487,62977.0,62976.0,0.3608]
[1728396383894,0.00238287,62977.0,62976.0,0.3608]
[1728396384082,0.08180387,62977.0,62976.0,0.30518015]
[1728396384386,0.079397,62997.0,62976.0,1.38154015]
[1728396384581,0.079403,62992.0,62980.0,0.27]
[1728396384790,0.079408,62988.0,62980.0,0.27]
[1728396384977,0.079408,62988.0,62976.0,0.30518015]
[1728396384978,0.07941,62986.0,62985.0,0.27]
[1728396385389,0.079414,62984.0,62982.0,0.3608]
[1728396385581,0.0794,62994.0,62982.0,0.3608]
[1728396385783,0.079406,62989.0,62988.0,0.3608]
[1728396385979,0.3608,63006.0,62988.0,0.3608]
[1728396386185,0.079396,62997.0,62996.0,0.3608]
[1728396386581,0.079406,62989.0,62988.0,0.3608]
[1728396386789,0.07941,62986.0,62985.0,0.003]
[1728396386982,0.080406,62989.0,62988.0,0.008]
[1728396387388,0.080406,62989.0,62988.0,0.3688]
[1728396388497,0.002,62989.0,62988.0,1.45108]
[1728396388988,0.081406,62989.0,62988.0,1.45108]
[1728396389187,0.081406,62989.0,62988.0,1.45208]
[1728396389389,0.081406,62989.0,62988.0,0.3758]
[1728396389991,0.080406,62989.0,62988.0,0.3678]
[1728396390192,0.081406,62989.0,62988.0,0.3808]
[1728396390391,0.081406,62989.0,62988.0,0.02]
[1728396390586,0.13462928,62989.0,62988.0,0.02]
[1728396390895,0.13362928,62989.0,62988.0,0.013]
[1728396391097,0.13462928,62989.0,62988.0,0.026]
[1728396391292,0.081406,62989.0,62988.0,0.026]
[1728396391488,0.13355408,62989.0,62988.0,0.026]
[1728396391687,0.13355408,62989.0,62988.0,0.013]
[1728396391891,0.13355408,62989.0,62988.0,0.02]
[1728396392393,0.13355408,62989.0,62988.0,0.015]
[1728396394092,0.13360586,62989.0,62988.0,0.015]
[1728396395092,0.13360586,62989.0,62986.0,0.00396]
[1728396395093,0.82491618,62989.0,62986.0,0.00396]
[1728396395282,0.079423,62976.0,62964.0,0.02852228]
[1728396395488,0.76242286,62976.0,62964.0,0.02852228]
[1728396395684,0.079438,62964.0,62963.0,0.0363]
[1728396395896,0.079438,62964.0,62963.0,0.06469642]
[1728396396396,0.36172,62976.0,62963.0,1.14117642]
[1728396396587,0.36172,62976.0,62975.0,0.013]
[1728396396588,0.441223,62976.0,62975.0,0.013]
[1728396396790,0.55363591,62976.0,62975.0,0.013]
[1728396397291,0.079429,62971.0,62970.0,0.3608]
[1728396397495,0.25982589,62971.0,62970.0,0.3608]
[1728396397699,0.079429,62971.0,62970.0,0.3608]
[1728396397887,0.53344811,62981.0,62963.0,0.07769642]
[1728396397888,0.079438,62964.0,62963.0,0.08369642]
[1728396398083,0.079438,62964.0,62963.0,0.019]
[1728396398496,0.079438,62964.0,62963.0,0.013]
[1728396398996,0.079438,62964.0,62961.0,0.00041]
[1728396398997,0.07944,62962.0,62961.0,0.00041]
[1728396399185,0.34944,62962.0,62954.0,0.3608]
[1728396399386,0.079454,62951.0,62946.0,0.0008]
[1728396399587,0.440254,62951.0,62940.0,0.02811322]
[1728396399794,1.516814,62951.0,62950.0,6.4e-07]
[1728396399997,1.48832901,62951.0,62931.0,0.3608]
[1728396400187,0.079486,62926.0,62924.0,0.3608]
[1728396400389,0.07948,62931.0,62924.0,0.3608]
[1728396400788,0.079478,62932.0,62924.0,0.3608]
[1728396400999,0.079484,62928.0,62924.0,0.3608]
[1728396401297,0.079487,62925.0,62918.0,0.36318384]
[1728396401497,0.079495,62919.0,62918.0,0.00238384]
[1728396402594,0.079495,62919.0,62918.0,0.00838384]
[1728396402595,0.080495,62919.0,62918.0,0.00838384]
[1728396402891,0.080495,62919.0,62918.0,0.006]
[1728396403292,0.081495,62919.0,62918.0,0.012]
[1728396405202,0.079515,62903.0,62902.0,0.00238458]
[1728396405401,0.720315,62903.0,62902.0,5.8e-07]
[1728396405593,0.079538,62885.0,62884.0,0.3608]
[1728396406902,0.440334,62889.0,62884.0,0.3608]
[1728396407098,0.441315,62903.0,62884.0,0.7216]
[1728396407303,0.7818,62903.0,62892.0,0.3608]
[1728396407504,0.079525,62896.0,62892.0,0.3608]
[1728396408296,0.07952,62899.0,62892.0,0.3608]
[1728396408500,0.00238554,62907.0,62898.0,0.3608]
[1728396408694,0.3608,62910.0,62904.0,0.3608]
[1728396408994,0.079507,62909.0,62904.0,0.3608]
[1728396409191,0.079509,62908.0,62904.0,0.3608]
[1728396409392,0.3608,62910.0,62904.0,0.3608]
[1728396409696,0.0686,62938.0,62904.0,1.85768]
[1728396409697,0.079506,62911.0,62904.0,1.85768]
[1728396410024,0.079506,62911.0,62910.0,0.3608]
[1728396410795,0.3608,62928.0,62910.0,1.43768]
[1728396410999,0.079501,62915.0,62910.0,0.3608]
[1728396411208,0.079502,62914.0,62910.0,0.3608]
[1728396411410,0.001,62911.0,62910.0,0.3608]
[1728396411708,0.001,62911.0,62910.0,0.83768]
[1728396411904,0.080505,62911.0,62910.0,0.83768]
[1728396412103,0.079505,62911.0,62910.0,0.83768]
[1728396412403,0.001,62911.0,62910.0,0.83768]
[1728396412603,0.001,62911.0,62910.0,1.43768]
[1728396412804,0.080505,62911.0,62910.0,0.3608]
[1728396413605,0.081505,62911.0,62910.0,0.3608]
[1728396413908,0.002,62911.0,62904.0,0.3608]
[1728396414109,0.079512,62905.0,62904.0,0.38910365]
[1728396415315,0.079506,62910.0,62904.0,0.38910365]
[1728396415513,0.079506,62910.0,62907.0,0.42]
[1728396415918,0.002,62911.0,62907.0,0.42]
[1728396416218,0.079512,62906.0,62904.0,0.38910365]
[1728396416405,0.079512,62905.0,62904.0,0.3608]
[1728396417016,0.079512,62905.0,62899.0,0.0331]
[1728396417208,0.42,62902.0,62897.0,0.3608]